bitfinex/quotes_SOLUSD_20250830
["timestamp","ask_amount","ask_price","bid_price","bid_amount"]
[1756531990450,1e-08,205.85,205.84,10.17964661]
[1756531990644,1e-08,205.85,205.84,5.58814224]
[1756531996973,1e-08,205.85,205.84,0.03]
[1756531997299,4.59150438,205.85,205.84,42.82814224]
[1756531997574,0.58000001,205.85,205.84,0.03]
[1756531997871,5.17150438,205.85,205.84,37.97]
[1756531998460,1e-08,205.85,205.84,43.52814224]
[1756531998666,1e-08,205.85,205.84,48.11964661]
[1756532001668,1e-08,205.85,205.84,43.52814224]
[1756532001851,1e-08,205.85,205.84,48.11964661]
[1756532002262,1e-08,205.85,205.84,43.52814224]
[1756532002673,1e-08,205.85,205.84,48.11964661]
[1756532004978,1e-08,205.87,205.84,48.11964661]
[1756532005178,5.17150437,205.86,205.84,4.88814224]
[1756532005487,1e-08,205.87,205.85,37.88]
[1756532005856,1e-08,205.87,205.86,4.85767026]
[1756532006863,1e-08,205.87,205.86,10.14917463]
[1756532007051,1e-08,205.87,205.86,4.85767026]
[1756532007458,1e-08,205.87,205.86,5.55767026]
[1756532007873,1e-08,205.87,205.86,10.14917463]
[1756532008073,1e-08,205.88,205.87,4.59150437]
[1756532008384,1e-08,205.91,205.87,44.11940937]
[1756532008675,1e-08,205.91,205.9,4.59150437]
[1756532008876,1e-08,205.91,205.9,42.83150437]
[1756532009078,1e-08,205.91,205.9,43.53150437]
[1756532010081,1e-08,205.91,205.9,48.38823093]
[1756532010877,1e-08,205.91,205.9,47.68823093]
[1756532011079,1e-08,205.91,205.9,4.85672656]
[1756532011265,1e-08,205.91,205.9,43.15672656]
[1756532011965,1e-08,205.91,205.9,48.46823093]
[1756532012165,1e-08,205.91,205.9,47.74823093]
[1756532012377,1e-08,205.91,205.9,43.15672656]
[1756532013880,0.58000001,205.91,205.9,43.15672656]
[1756532014273,0.58000001,205.91,205.85,4.85767701]
[1756532014274,5.17150438,205.91,205.85,4.85767701]
[1756532014604,4.59150437,205.86,205.85,38.26]
[1756532014755,5.17150437,205.86,205.85,38.26]
[1756532016469,13.59559401,205.85,205.81,0.03]
[1756532016675,21.4615914,205.85,205.81,38.35]
[1756532016877,8.44599739,205.85,205.81,38.35]
[1756532017795,8.44599739,205.85,205.81,43.20869131]
[1756532018080,34.44599739,205.85,205.81,43.20869131]
[1756532019295,31.17150437,205.85,205.81,43.20869131]
[1756532019670,0.06,205.86,205.81,43.20869131]
[1756532019890,0.06,205.86,205.85,38.28]
[1756532020073,30.65150437,205.86,205.85,38.28]
[1756532021967,4.65150437,205.86,205.85,43.13790624]
[1756532022185,0.06,205.86,205.85,43.13790624]
[1756532022776,4.65150437,205.86,205.85,43.13790624]
[1756532023187,0.06,205.86,205.85,43.13790624]
[1756532023388,0.06,205.86,205.85,48.44941061]
[1756532023690,1e-08,205.86,205.85,63.6748378]
[1756532024309,1e-08,205.86,205.85,63.18904718]
[1756532025598,1e-08,205.89,205.86,0.14216157]
[1756532025775,1e-08,205.89,205.88,4.73366594]
[1756532026277,1e-08,205.89,205.88,5.45366594]
[1756532026886,0.06,206.02,205.91,26.0]
[1756532027173,0.06,206.02,205.9,0.14216157]
[1756532027174,0.06,206.02,205.99,4.59150437]
[1756532027482,0.06,206.02,205.99,47.78610896]
[1756532027782,0.06,206.02,205.99,48.50610896]
[1756532027986,0.06,206.02,205.99,47.78610896]
[1756532028184,0.06,206.02,205.99,43.91460459]
[1756532028386,0.06,206.02,205.99,48.50610896]
[1756532028784,0.06,206.02,205.99,43.91460459]
[1756532028985,0.06,206.02,205.99,48.50610896]
[1756532029168,0.06,206.02,205.99,43.91460459]
[1756532029374,1e-08,206.0,205.99,48.50610896]
[1756532029981,1e-08,206.02,205.99,53.72523535]
[1756532030179,1e-08,206.02,206.01,4.73366594]
[1756532030477,0.58,206.18,206.03,0.14216157]
[1756532030675,0.58,206.18,206.11,4.59150437]
[1756532030888,4.59150437,206.17,206.11,39.38]
[1756532031200,0.58,206.18,206.11,43.25150437]
[1756532031381,0.58,206.18,206.06,0.14216157]
[1756532031382,0.64,206.15,206.06,0.14216157]
[1756532031694,7.97058754,206.14,206.08,4.85225605]
[1756532031988,7.97058754,206.14,206.09,7.33058754]
[1756532032191,4.85015486,206.18,206.1,38.68]
[1756532032192,0.64,206.17,206.1,38.68]
[1756532032397,7.97058754,206.16,206.1,38.68]
[1756532032596,7.97058754,206.16,206.08,4.85225605]
[1756532032597,7.33058754,206.15,206.08,4.85225605]
[1756532032899,7.33058754,206.14,206.09,46.09058754]
[1756532033672,7.33058754,206.14,206.1,38.84]
[1756532033872,0.74,206.12,206.11,38.82]
[1756532034277,0.1,206.12,206.11,38.82]
[1756532034474,26.0,206.09,206.04,4.85339845]
[1756532034679,33.33058754,206.09,206.05,38.84]
[1756532035094,26.0,206.11,206.05,46.89058754]
[1756532035275,33.33058754,206.11,206.05,46.89058754]
[1756532035477,33.33058754,206.11,206.06,7.33058754]
[1756532035478,26.0,206.11,206.06,7.33058754]
[1756532035679,26.0,206.11,206.05,39.56]
[1756532035680,7.97058754,206.1,206.05,43.69317134]
[1756532035899,7.97058754,206.1,206.05,51.02375888]
[1756532036094,7.33058754,206.08,206.05,43.69317134]
[1756532036296,7.33058754,206.09,206.05,38.84]
[1756532036498,26.64,206.11,206.05,51.02376212]
[1756532036692,26.64,206.11,206.05,51.74376212]
[1756532036896,26.0,206.11,206.07,7.33058754]
[1756532037199,26.64,206.11,206.08,38.84]
[1756532037513,0.1,206.12,206.09,0.72]
[1756532037679,0.1,206.12,206.1,12.90260112]
[1756532037881,0.1,206.12,206.11,38.86]
[1756532038886,0.1,206.12,206.11,43.71177817]
[1756532039300,7.43058754,206.12,206.06,8.05058754]
[1756532039503,7.43058754,206.12,206.07,51.76330748]
[1756532039814,0.1,206.12,206.08,8.05058754]
[1756532039985,0.1,206.12,206.09,0.72]
[1756532040189,0.1,206.12,206.1,39.56]
[1756532040382,0.1,206.12,206.11,0.72]
[1756532040583,0.1,206.12,206.11,8.05058754]
[1756532041005,0.1,206.12,206.11,12.90236571]
[1756532041309,0.7,206.23,206.12,0.14216157]
[1756532041506,7.33058754,206.2,206.15,7.33058754]
[1756532041708,0.7,206.22,206.16,38.84]
[1756532041709,26.7,206.22,206.16,38.84]
[1756532041886,7.33058754,206.2,206.16,38.84]
[1756532042584,0.7,206.2,206.16,38.84]
[1756532043094,136.44854404,206.25,206.18,7.33058754]
[1756532043095,132.3,206.25,206.18,7.33058754]
[1756532043395,131.6,206.25,206.19,39.51]
[1756532043597,7.33058754,206.24,206.19,46.84058754]
[1756532043981,131.6,206.25,206.2,8.02058754]
[1756532044200,157.6,206.25,206.2,8.02058754]
[1756532044412,7.33058754,206.27,206.22,7.33058754]
[1756532044583,7.33058754,206.27,206.21,0.69]
[1756532044584,7.33058754,206.26,206.23,38.82]
[1756532044884,7.33058754,206.25,206.21,0.69]
[1756532045085,7.33058754,206.22,206.17,5.5401607]
[1756532045293,0.7,206.24,206.18,39.51]
[1756532045491,0.7,206.24,206.18,0.69]
[1756532045699,0.7,206.24,206.19,38.82]
[1756532046016,0.7,206.26,206.19,39.51]
[1756532046210,26.0,206.24,206.19,39.51]
[1756532046401,7.33058754,206.22,206.19,38.82]
[1756532046714,0.7,206.22,206.2,38.94]
[1756532046909,26.7,206.24,206.2,38.94]
[1756532047101,7.33058754,206.21,206.2,38.94]
[1756532047691,7.33058754,206.21,206.17,4.85033363]
[1756532047924,7.33058754,206.21,206.16,15.266197]
[1756532047925,7.33058754,206.18,206.16,14.576197]
[1756532048115,7.33058754,206.18,206.17,38.92]
[1756532049299,7.33058754,206.19,206.17,38.92]
[1756532049613,7.33058754,206.24,206.18,8.02058754]
[1756532049915,7.33058754,206.23,206.19,39.04]
[1756532050114,7.33058754,206.22,206.19,39.04]
[1756532050419,7.33058754,206.23,206.2,0.69]
[1756532050715,0.7,206.27,206.2,5.53962848]
[1756532050909,7.33058754,206.23,206.2,5.53962848]
[1756532051299,26.7,206.27,206.21,0.69]
[1756532051599,7.33058754,206.24,206.2,4.84962848]
[1756532051803,7.33058754,206.24,206.2,5.53962848]
[1756532051997,6.83058754,206.24,206.2,5.53962848]
[1756532052516,6.83058754,206.24,206.21,0.69]
[1756532052723,0.7,206.3,206.23,4.84895505]
[1756532052921,0.7,206.3,206.24,39.04]
[1756532053133,7.33058754,206.27,206.24,39.04]
[1756532053311,7.33058754,206.27,206.24,39.73]
[1756532053501,7.33058754,206.27,206.24,39.04]
[1756532053905,0.06,206.26,206.24,39.04]
[1756532054112,7.33058754,206.25,206.21,14.574072]
[1756532054316,7.33058754,206.24,206.21,14.574072]
[1756532054600,0.06,206.26,206.19,0.69]
[1756532054601,7.33058754,206.23,206.22,39.12]
[1756532055321,0.7,206.25,206.19,0.69]
[1756532055495,7.33058754,206.23,206.22,39.12]
[1756532055814,33.33058754,206.25,206.22,39.81]
[1756532056805,33.33058754,206.25,206.22,39.12]
[1756532057125,7.33058754,206.23,206.22,39.12]
[1756532057495,7.33058754,206.23,206.16,0.69]
[1756532057496,0.7,206.23,206.16,0.69]
[1756532057701,7.33058754,206.2,206.17,43.9103662]
[1756532057909,7.33058754,206.2,206.17,44.6003662]
[1756532058104,7.33058754,206.2,206.17,43.9103662]
[1756532058429,26.0,206.23,206.18,0.69]
[1756532058632,26.0,206.23,206.19,0.69]
[1756532058845,26.0,206.25,206.17,51.24095374]
[1756532059037,0.06,206.26,206.18,0.69]
[1756532059326,7.39058754,206.26,206.21,7.33058754]
[1756532059623,7.33058754,206.23,206.22,39.2]
[1756532059920,26.06,206.26,206.22,39.2]
[1756532060124,0.06,206.26,206.22,0.69]
[1756532060300,0.06,206.26,206.23,39.89]
[1756532060709,0.06,206.26,206.24,0.69]
[1756532061027,0.06,206.26,206.25,39.42]
[1756532061237,0.06,206.26,206.25,40.11]
[1756532061940,0.06,206.26,206.25,47.44058754]
[1756532062100,0.06,206.26,206.25,40.11]
[1756532062302,0.06,206.26,206.25,39.42]
[1756532062499,0.06,206.26,206.25,62.15186711]
[1756532062922,0.06,206.28,206.26,4.84824978]
[1756532063134,0.06,206.28,206.27,7.33058754]
[1756532063326,7.33058754,206.4,206.27,0.83216157]
[1756532063327,0.7,206.37,206.27,0.83216157]
[1756532063502,4.5730334,206.4,206.28,40.08]
[1756532063701,4.5730334,206.32,206.29,0.69]
[1756532063914,26.7,206.36,206.3,40.2]
[1756532064234,26.0,206.36,206.3,40.2]
[1756532064437,4.6730334,206.33,206.3,40.2]
[1756532064805,0.1,206.33,206.31,0.69]
[1756532065026,0.1,206.33,206.32,9.41987326]
[1756532065207,0.1,206.33,206.32,0.69]
[1756532065537,7.4179155,206.33,206.32,40.42]
[1756532065832,0.1,206.33,206.28,7.3179155]
[1756532066130,0.1,206.33,206.31,7.3179155]
[1756532066433,0.1,206.33,206.32,7.3179155]
[1756532066631,0.1,206.33,206.32,8.0079155]
[1756532067014,0.7,206.43,206.32,5.53683986]
[1756532067314,33.3179155,206.4,206.33,41.93]
[1756532067615,7.3179155,206.38,206.34,0.69]
[1756532067929,26.7,206.4,206.34,0.69]
[1756532068141,0.7,206.4,206.34,0.69]
[1756532068312,0.7,206.42,206.35,41.26]
[1756532068506,7.3179155,206.39,206.35,41.26]
[1756532068702,7.3179155,206.38,206.35,41.26]
[1756532069108,7.3179155,206.37,206.33,4.84655515]
[1756532069420,7.3179155,206.36,206.34,41.26]
[1756532069608,0.7,206.35,206.34,41.26]
[1756532069809,26.0,206.41,206.34,41.95]
[1756532070034,26.7,206.42,206.35,7.3179155]
[1756532070247,7.3179155,206.41,206.35,8.0079155]
[1756532070747,0.7,206.41,206.34,41.26]
[1756532071031,26.0,206.42,206.35,0.67]
[1756532071250,7.3179155,206.39,206.34,46.10620274]
[1756532071450,7.3179155,206.39,206.35,0.67]
[1756532072734,0.06,206.39,206.38,7.3179155]
[1756532072911,0.06,206.39,206.38,54.19334625]
[1756532073533,0.06,206.39,206.38,5.51543075]
[1756532073735,0.06,206.39,206.36,0.67]
[1756532073914,0.71,206.38,206.37,41.3]
[1756532074125,8.0279155,206.38,206.37,41.3]
[1756532074325,7.3779155,206.39,206.37,41.3]
[1756532074530,0.06,206.39,206.37,41.3]
[1756532074914,7.3179155,206.38,206.37,41.3]
[1756532075848,8.0279155,206.38,206.35,41.28]
[1756532076013,0.06,206.39,206.35,41.28]
[1756532076211,0.06,206.39,206.36,0.67]
[1756532076412,0.06,206.39,206.37,7.9879155]
[1756532076843,0.06,206.39,206.38,12.83334625]
[1756532077012,0.06,206.39,206.38,12.97550782]
[1756532077927,1e-08,206.39,206.38,12.97550782]
[1756532078141,1e-08,206.39,206.38,5.51543075]
[1756532078317,1e-08,206.39,206.38,54.09334625]
[1756532078515,1e-08,206.39,206.38,46.77543075]
[1756532078913,1e-08,206.39,206.38,54.09334625]
[1756532079339,1e-08,206.39,206.38,46.77543075]
[1756532079514,1e-08,206.39,206.38,54.09334625]
[1756532082229,1e-08,206.39,206.38,46.77543075]
[1756532082542,1e-08,206.39,206.32,12.16475536]
[1756532082543,0.71000001,206.39,206.32,12.16475536]
[1756532082749,7.3179155,206.38,206.34,41.18]
[1756532082951,1e-08,206.39,206.36,12.16381586]
[1756532083119,1e-08,206.39,206.37,41.18]
[1756532084343,1e-08,206.39,206.37,46.02548545]
[1756532084918,8.0279155,206.38,206.32,4.84683986]
[1756532085131,1e-08,206.39,206.33,49.1679155]
[1756532085335,1e-08,206.39,206.33,41.85]
[1756532085535,1e-08,206.39,206.34,0.67]
[1756532085927,1e-08,206.39,206.35,0.67]
[1756532086124,7.3179155,206.37,206.36,41.1]
[1756532086330,1e-08,206.39,206.36,41.1]
[1756532086541,0.71000001,206.39,206.36,41.1]
[1756532087066,7.31791551,206.39,206.36,41.1]
[1756532087222,1e-08,206.39,206.37,7.9879155]
[1756532087546,1e-08,206.39,206.38,7.9879155]
[1756532087939,1e-08,206.39,206.36,41.1]
[1756532088324,1e-08,206.39,206.37,4.84566555]
[1756532088649,1e-08,206.39,206.37,5.51566555]
[1756532089143,1e-08,206.39,206.38,0.67]
[1756532089350,1e-08,206.39,206.38,7.9879155]
[1756532090351,1e-08,206.39,206.38,12.86334625]
[1756532090555,0.06,206.44,206.38,12.86334625]
[1756532090723,26.0,206.49,206.4,7.3179155]
[1756532090724,7.3179155,206.45,206.4,7.3179155]
[1756532090927,7.3179155,206.45,206.41,0.67]
[1756532091255,7.3179155,206.45,206.42,41.16]
[1756532091630,0.1,206.51,206.42,41.16]
[1756532091830,7.3179155,206.46,206.42,41.16]
[1756532092146,0.1,206.51,206.42,41.83]
[1756532092330,7.3179155,206.47,206.42,41.83]
[1756532092735,7.3179155,206.46,206.42,41.83]
[1756532092945,7.3179155,206.46,206.42,46.67435743]
[1756532093140,26.0,206.5,206.42,46.00435743]
[1756532093337,7.3179155,206.48,206.43,7.9879155]
[1756532093539,7.3179155,206.5,206.44,7.9879155]
[1756532093739,7.3179155,206.5,206.45,41.75]
[1756532094050,0.1,206.51,206.46,0.67]
[1756532094229,7.3179155,206.5,206.46,0.67]
[1756532094843,7.3179155,206.5,206.46,4.84349939]
[1756532095151,7.3179155,206.48,206.45,41.08]
[1756532095538,7.3179155,206.47,206.42,4.84436329]
[1756532095850,7.3179155,206.43,206.39,0.67]
[1756532096150,7.3179155,206.43,206.42,41.02]
[1756532097360,7.3179155,206.43,206.36,38.11472396]
[1756532097361,4.82141562,206.43,206.36,4.84581528]
[1756532097552,26.0,206.43,206.39,41.0]
[1756532097752,4.57141562,206.4,206.39,41.0]
[1756532098050,4.57141562,206.4,206.36,40.96]
[1756532098249,0.25,206.42,206.36,40.96]
[1756532098633,4.57141562,206.39,206.36,41.63]
[1756532098847,4.57141562,206.39,206.36,40.96]
[1756532099038,4.82141562,206.39,206.35,0.03]
[1756532099348,7.56719921,206.39,206.35,0.03]
[1756532099553,7.31719921,206.39,206.35,0.03]
[1756532100250,26.0079892,206.39,206.35,0.03]
[1756532100454,26.15015077,206.39,206.35,0.03]
[1756532100753,0.25,206.42,206.35,0.03]
[1756532100954,3.6371815,206.44,206.35,0.75]
[1756532101144,26.0,206.43,206.37,0.72]
[1756532101345,7.31719921,206.41,206.37,0.72]
[1756532101545,7.31719921,206.39,206.35,0.03]
[1756532102132,13.59559401,206.42,206.36,0.72]
[1756532102757,7.31719921,206.39,206.36,0.72]
[1756532103137,7.31719921,206.39,206.36,5.56581406]
[1756532103344,7.31719921,206.39,206.35,0.03]
[1756532103539,7.31719921,206.39,206.35,4.8759136]
[1756532103754,7.31719921,206.39,206.36,4.84585079]
[1756532104057,7.31719921,206.42,206.38,0.75]
[1756532104264,7.31719921,206.44,206.39,7.31719921]
[1756532104432,7.31719921,206.44,206.4,0.72]
[1756532104636,7.31719921,206.44,206.41,0.72]
[1756532104935,13.59559401,206.5,206.39,7.31719921]
[1756532104936,7.31719921,206.42,206.39,0.72]
[1756532105141,7.31719921,206.41,206.39,0.72]
[1756532105638,7.31719921,206.4,206.38,0.03]
[1756532105841,7.31719921,206.39,206.38,0.03]
[1756532106261,26.25,206.39,206.38,0.03]
[1756532106440,33.31719921,206.39,206.38,0.03]
[1756532107236,38.16239519,206.39,206.38,0.03]
[1756532107437,38.41239519,206.39,206.38,0.03]
[1756532107634,55.40989783,206.39,206.38,0.03]
[1756532109560,55.15989783,206.39,206.38,0.03]
[1756532109757,55.40989783,206.39,206.38,0.03]
[1756532110482,46.91279322,206.36,206.35,0.03]
[1756532110655,50.17254028,206.36,206.35,0.03]
[1756532110975,13.73775558,206.35,206.33,0.03]
[1756532111145,3.40190863,206.34,206.33,0.03]
[1756532111475,26.0,206.3,206.22,0.03]
[1756532111651,26.0,206.3,206.27,0.72]
[1756532111841,26.0,206.31,206.22,4.87908993]
[1756532112041,26.0,206.31,206.23,0.72]
[1756532112242,26.0,206.3,206.23,0.72]
[1756532112777,7.31719921,206.27,206.23,0.72]
[1756532113269,7.31719921,206.24,206.22,4.87917526]
[1756532113453,26.0,206.3,206.22,4.87917526]
[1756532113766,7.31719921,206.26,206.22,4.87917526]
[1756532113945,7.31719921,206.26,206.23,0.72]
[1756532114145,26.0,206.3,206.23,0.72]
[1756532114342,7.31719921,206.27,206.23,0.72]
[1756532114868,7.31719921,206.27,206.24,0.72]
[1756532115082,7.31719921,206.26,206.22,5.59917526]
[1756532115254,7.31719921,206.24,206.23,0.72]
[1756532115888,13.84559401,206.29,206.22,0.03]
[1756532116168,7.31719921,206.24,206.23,0.72]
[1756532116843,7.31719921,206.24,206.22,0.03]
[1756532117050,7.31719921,206.23,206.22,0.03]
[1756532117659,21.16279322,206.23,206.22,0.03]
[1756532118047,26.01174827,206.23,206.22,0.03]
[1756532118261,52.01174827,206.23,206.22,0.03]
[1756532118468,52.15390984,206.23,206.22,0.03]
[1756532119547,39.73775558,206.22,206.19,0.03]
[1756532119743,13.59559401,206.19,206.17,0.03]
[1756532119948,26.0,206.14,206.12,0.03]
[1756532120245,20.91279322,206.13,206.12,0.03]
[1756532121394,26.0,206.14,206.12,0.03]
[1756532121556,13.59559401,206.17,206.12,0.75]
[1756532121903,66.54,206.18,206.12,0.75]
[1756532121904,7.31719921,206.14,206.13,0.72]
[1756532122179,26.0,206.18,206.12,0.03]
[1756532122180,7.31719921,206.15,206.14,0.72]
[1756532122355,7.31719921,206.16,206.12,0.03]
[1756532122674,13.59559401,206.21,206.12,0.03]
[1756532122978,40.77,206.23,206.13,0.72]
[1756532123168,7.31719921,206.17,206.13,0.72]
[1756532123483,5.09779177,206.28,206.16,4.85060147]
[1756532123780,7.31719921,206.21,206.17,0.72]
[1756532123965,7.31719921,206.21,206.16,12.16780068]
[1756532124169,7.31719921,206.21,206.18,0.72]
[1756532124385,7.31719921,206.21,206.19,0.72]
[1756532124587,7.31719921,206.2,206.14,12.16806753]
[1756532124783,7.31719921,206.16,206.14,5.57086832]
[1756532125083,0.25,206.23,206.15,0.72]
[1756532125084,7.31719921,206.17,206.15,0.72]
[1756532125286,7.31719921,206.17,206.14,4.85086832]
[1756532125486,7.31719921,206.17,206.15,0.72]
[1756532126184,7.31719921,206.2,206.16,0.72]
[1756532126578,7.31719921,206.2,206.17,0.72]
[1756532126774,7.31719921,206.2,206.18,0.72]
[1756532126989,7.31719921,206.21,206.19,0.72]
[1756532127177,7.31719921,206.2,206.16,0.72]
[1756532127397,7.31719921,206.19,206.15,4.85065907]
[1756532127571,131.6,206.21,206.17,0.72]
[1756532127774,131.6,206.21,206.15,4.85065907]
[1756532127775,7.31719921,206.2,206.18,0.72]
[1756532128083,7.31719921,206.19,206.17,4.8503662]
[1756532128278,7.31719921,206.19,206.18,0.72]
[1756532128482,131.6,206.21,206.18,0.72]
[1756532128661,138.91719921,206.21,206.18,0.72]
[1756532128866,7.31719921,206.19,206.18,0.72]
[1756532129075,7.31719921,206.19,206.16,5.57059527]
[1756532129276,7.31719921,206.19,206.17,0.72]
[1756532129771,7.31719921,206.18,206.14,0.03]
[1756532129967,0.25,206.19,206.14,0.03]
[1756532130174,7.31719921,206.15,206.14,0.03]
[1756532131094,131.6,206.21,206.14,0.72]
[1756532131267,131.6,206.21,206.15,7.31719921]
[1756532131468,7.31719921,206.2,206.16,0.69]
[1756532131890,7.31719921,206.2,206.14,0.03]
[1756532131891,7.31719921,206.2,206.17,0.69]
[1756532132195,131.6,206.21,206.18,4.85013095]
[1756532132370,131.6,206.21,206.19,0.69]
[1756532132568,138.91719921,206.21,206.19,0.69]
[1756532133385,157.6,206.27,206.2,0.69]
[1756532133585,131.6,206.26,206.2,0.69]
[1756532133771,7.31719921,206.24,206.2,0.69]
[1756532133979,131.6,206.26,206.21,0.69]
[1756532134288,7.31719921,206.24,206.22,0.69]
[1756532134492,131.6,206.26,206.2,4.84966052]
[1756532134696,7.31719921,206.24,206.22,0.69]
[1756532135404,7.31719921,206.23,206.22,0.69]
[1756532135592,131.6,206.26,206.23,0.69]
[1756532135794,138.91719921,206.26,206.23,0.69]
[1756532136096,7.31719921,206.24,206.21,0.69]
[1756532136302,7.31719921,206.24,206.22,0.69]
[1756532137106,7.31719921,206.24,206.2,0.69]
[1756532137413,7.31719921,206.24,206.21,0.69]
[1756532137586,7.31719921,206.24,206.22,0.69]
[1756532138188,7.31719921,206.25,206.22,0.69]
[1756532138387,2.59454054,206.36,206.24,7.31719921]
[1756532138691,7.31719921,206.34,206.28,7.31719921]
[1756532138893,0.06,206.36,206.27,4.84801473]
[1756532139079,0.06,206.36,206.27,12.16521394]
[1756532139281,0.06,206.36,206.28,0.69]
[1756532139499,7.31719921,206.32,206.29,0.69]
[1756532140208,7.31719921,206.32,206.27,12.16521394]
[1756532140422,0.06,206.36,206.29,4.84754471]
[1756532140707,7.37719921,206.33,206.29,4.84754471]
[1756532141090,7.37719921,206.33,206.3,0.69]
[1756532141312,7.37719921,206.33,206.31,0.69]
[1756532141510,0.06,206.33,206.32,0.69]
[1756532141884,0.06,206.33,206.3,0.69]
[1756532142617,0.06,206.33,206.31,0.69]
[1756532142789,0.06,206.33,206.32,7.31719921]
[1756532143183,0.06,206.33,206.32,0.69]
[1756532143520,0.06,206.33,206.32,8.00719921]
[1756532143739,0.06,206.33,206.3,40.2]
[1756532143898,0.06,206.33,206.32,0.69]
[1756532144536,0.06,206.33,206.29,42.9664065]
[1756532144715,0.06,206.33,206.31,0.69]
[1756532145024,7.31318333,206.34,206.31,0.69]
[1756532145226,0.06,206.36,206.29,4.84754471]
[1756532145427,0.06,206.36,206.29,45.71754471]
[1756532145835,0.06,206.36,206.3,0.69]
[1756532146140,0.06,206.33,206.3,0.69]
[1756532146295,0.06,206.33,206.31,0.69]
[1756532146495,0.06,206.33,206.31,8.00719921]
[1756532146699,0.06,206.33,206.32,4.84683986]
[1756532146932,0.06,206.33,206.32,5.53683986]
[1756532147931,0.06,206.33,206.32,12.85403907]
[1756532148395,0.06,206.36,206.32,24.97113872]
[1756532148599,0.06,206.36,206.34,12.16356927]
[1756532148824,0.06,206.36,206.34,52.26356927]
[1756532149027,0.06,206.36,206.35,0.69]
[1756532149240,0.06,206.36,206.35,8.00719921]
[1756532149720,0.06,206.36,206.35,0.69]
[1756532150731,0.06,206.36,206.35,5.5361352]
[1756532151305,1e-08,206.36,206.35,12.85333441]
[1756532152425,1e-08,206.36,206.35,5.5361352]
[1756532152640,1e-08,206.36,206.35,12.85333441]
[1756532152846,1e-08,206.36,206.35,52.85333441]
[1756532153729,1e-08,206.36,206.35,78.85333441]
[1756532155551,1e-08,206.36,206.35,78.81333441]
[1756532156203,1e-08,206.36,206.35,38.85333441]
[1756532156823,1e-08,206.36,206.35,78.81333441]
[1756532157024,1e-08,206.36,206.35,78.31333441]
[1756532157525,1e-08,206.36,206.35,38.16333441]
[1756532157732,1e-08,206.36,206.35,78.10333441]
[1756532158031,1e-08,206.36,206.35,78.08333441]
[1756532159014,1e-08,206.36,206.35,78.77333441]
[1756532159425,1e-08,206.36,206.35,71.4561352]
[1756532159828,1e-08,206.36,206.35,78.77333441]
[1756532161213,1e-08,206.36,206.35,70.7661352]
[1756532161415,1e-08,206.36,206.35,30.8461352]
[1756532161613,1e-08,206.36,206.35,78.00333441]
[1756532161818,1e-08,206.36,206.35,4.8461352]
[1756532162019,1e-08,206.36,206.35,44.6861352]
[1756532162251,1e-08,206.36,206.35,52.68333441]
[1756532164051,1e-08,206.36,206.35,78.68333441]
[1756532166123,1e-08,206.36,206.35,78.82549598]
[1756532167140,0.06,206.38,206.35,78.82549598]
[1756532167141,1e-08,206.38,206.37,26.0]
[1756532167344,1e-08,206.38,206.37,65.76]
[1756532167540,1e-08,206.38,206.37,73.75719921]
[1756532167744,0.66000001,206.38,206.35,4.8461352]
[1756532168043,1e-08,206.38,206.37,7.31719921]
[1756532168231,1e-08,206.38,206.37,47.19936078]
[1756532168434,1e-08,206.38,206.37,47.87936078]
[1756532169137,1e-08,206.38,206.37,52.72502633]